bitfinex-derivatives/quotes_SOLF0:USTF0_20251129
["timestamp","ask_amount","ask_price","bid_price","bid_amount"]
[1764431328688,3.15761142,137.37,137.35,1.69]
[1764431330686,3.15761142,137.37,137.34,6.59732628]
[1764431330884,3.15761142,137.37,137.34,8.27732628]
[1764431334795,3.15761142,137.37,137.35,1.68]
[1764431355009,3.15761142,137.37,137.35,8.2307]
[1764431358211,3.15761142,137.37,137.36,1.68]
[1764431359311,3.15761142,137.37,137.35,8.2307]
[1764431362814,3.15761142,137.37,137.35,6.5507]
[1764431363709,3.15761142,137.37,137.35,8.2307]
[1764431367110,3.15761142,137.37,137.35,6.5507]
[1764431369611,3.15761142,137.37,137.32,10.36826153]
[1764431370013,3.15761142,137.37,137.33,1.68]
[1764431370314,3.09,137.36,137.33,1.68]
[1764431370515,3.09,137.36,137.33,1.72699326]
[1764431381812,0.04761142,137.37,137.34,1.68]
[1764431381813,5.15652586,137.37,137.34,1.68]
[1764431382013,3.13761142,137.37,137.34,1.68]
[1764431382217,3.13761142,137.37,137.35,1.68]
[1764431382414,0.04761142,137.37,137.36,3.81616153]
[1764431384023,3.13761142,137.37,137.35,6.5505]
[1764431384219,3.13761142,137.37,137.35,8.2305]
[1764431385728,0.04761142,137.37,137.36,1.68]
[1764431393832,3.31761142,137.37,137.35,6.5505]
[1764431394027,3.31761142,137.37,137.35,8.2205]
[1764431396331,3.31761142,137.37,137.34,2.13616153]
[1764431396520,3.31761142,137.37,137.33,8.26859326]
[1764431397434,3.31761142,137.37,137.34,1.67]
[1764431397625,8.42366488,137.36,137.34,1.67]
[1764431397826,3.27,137.36,137.34,1.67]
[1764431398632,0.04761142,137.37,137.35,1.67]
[1764431400035,0.04761142,137.37,137.36,3.80616153]
[1764431404341,3.27,137.42,137.38,1.67]
[1764431404641,3.27,137.42,137.39,3.80616153]
[1764431405038,3.27,137.42,137.4,1.67]
[1764431405238,3.31821491,137.42,137.4,1.72307318]
[1764431405541,3.31821491,137.42,137.4,0.05307318]
[1764431407342,3.31821491,137.42,137.4,1.72307318]
[1764431407540,0.04821491,137.42,137.4,1.72307318]
[1764431407744,0.04821491,137.42,137.41,3.80616153]
[1764431410942,0.04821491,137.42,137.41,1.67]
[1764431411139,0.04821491,137.42,137.41,3.80616153]
[1764431411636,3.31821491,137.42,137.36,2.13616153]
[1764431411835,3.31821491,137.42,137.36,3.80616153]
[1764431412036,3.31821491,137.42,137.36,1.67]
[1764431412232,3.27,137.41,137.36,2.13616153]
[1764431412639,3.27,137.41,137.37,0.04716732]
[1764431412836,3.27,137.39,137.37,0.04716732]
[1764431416044,3.27,137.38,137.3,1.67]
[1764431416344,3.27,137.36,137.3,1.67]
[1764431416553,3.27,137.34,137.28,6.554]
[1764431417051,3.31764255,137.32,137.3,0.05380644]
[1764431417253,0.04764255,137.32,137.3,1.72380644]
[1764431428857,0.04764255,137.32,137.3,5.06142959]
[1764431429259,3.09,137.39,137.32,1.64]
[1764431429552,3.09,137.39,137.35,1.64]
[1764431430148,0.05527823,137.38,137.36,0.05318378]
[1764431430360,0.05527823,137.38,137.36,1.69318378]
[1764431430659,3.14527823,137.38,137.36,0.05318378]
[1764431432159,4.60527823,137.38,137.36,0.05318378]
[1764431432363,3.09,137.37,137.36,0.05318378]
[1764431434258,4.55,137.37,137.36,0.05318378]
[1764431438349,0.05527823,137.38,137.36,1.69318378]
[1764431438549,0.05527823,137.38,137.37,1.64]
[1764431442861,0.05527823,137.38,137.36,11.58090693]
[1764431443766,0.05527823,137.38,137.37,1.64]
[1764431446863,0.05527823,137.38,137.36,9.94090693]
[1764431447169,0.05527823,137.38,137.36,11.58090693]
[1764431447573,0.05527823,137.38,137.37,1.64]
[1764431460571,0.05527823,137.38,137.36,9.94090693]
[1764431460572,3.13527823,137.38,137.36,8.24328378]
[1764431461177,0.05527823,137.38,137.37,1.64]
[1764431464777,0.05527823,137.38,137.36,6.60328378]
[1764431464778,3.13527823,137.38,137.36,6.60328378]
[1764431465681,3.13527823,137.38,137.33,8.1914]
[1764431465880,3.08,137.36,137.33,8.1914]
[1764431466681,3.08,137.36,137.33,8.24229874]
[1764431466978,3.08,137.36,137.34,1.64]
[1764431468385,5.14491124,137.37,137.34,1.64]
[1764431468583,3.13527823,137.38,137.34,1.64]
[1764431468787,5.14490929,137.37,137.34,1.64]
[1764431468994,3.13527823,137.38,137.34,1.64]
[1764431469286,5.14492272,137.37,137.34,1.64]
[1764431469489,3.13527823,137.38,137.34,1.64]
[1764431469689,5.14565805,137.37,137.34,1.64]
[1764431469987,3.13527823,137.38,137.34,1.64]
[1764431470290,5.14565805,137.37,137.34,1.64]
[1764431470484,3.13527823,137.38,137.34,1.64]
[1764431470684,8.22645377,137.37,137.34,1.64]
[1764431470983,3.08,137.37,137.34,1.64]
[1764431477889,3.08,137.37,137.33,10.37910431]
[1764431478193,3.08,137.37,137.33,3.82770431]
[1764431478887,3.08,137.37,137.34,1.64]
[1764431487396,3.08,137.37,137.33,3.82770431]
[1764431489302,3.08,137.37,137.34,1.64]
[1764431490205,3.08,137.37,137.33,3.82770431]
[1764431491204,3.08,137.37,137.34,1.64]
[1764431498205,3.24527823,137.38,137.35,2.13680557]
[1764431498399,3.24527823,137.38,137.35,3.77680557]
[1764431498711,0.05527823,137.38,137.36,1.64]
[1764431499096,3.24527823,137.38,137.36,1.64]
[1764431504315,0.05527823,137.38,137.36,1.64]
[1764431507915,3.24527823,137.38,137.36,1.64]
[1764431518237,0.05527823,137.38,137.36,1.64]
[1764431520342,0.05527823,137.38,137.37,3.77680557]
[1764431521038,5.04462654,137.42,137.37,3.77680557]
[1764431521039,8.16462654,137.42,137.38,1.64]
[1764431521234,8.16462654,137.42,137.37,8.68660557]
[1764431521235,3.12,137.42,137.4,1.64]
[1764431521932,3.12,137.42,137.39,3.77680557]
[1764431522133,3.17313543,137.42,137.4,0.0550842]
[1764431532448,3.17313543,137.42,137.4,1.6950842]
[1764431532741,3.17313543,137.42,137.4,0.0550842]
[1764431532943,3.17313543,137.42,137.41,3.77680557]
[1764431532944,0.05313543,137.42,137.41,3.77680557]
[1764431534550,0.05313543,137.42,137.41,4.9737803]
[1764431541445,3.28,137.48,137.43,1.63]
[1764431542048,3.28,137.48,137.44,1.63]
[1764431542651,3.32770297,137.47,137.45,1.67791577]
[1764431542861,0.04770297,137.47,137.45,1.67791577]
[1764431544357,3.32770297,137.47,137.45,1.67791577]
[1764431548562,0.04770297,137.47,137.46,1.63]
[1764431558970,3.10770297,137.47,137.46,1.63]
[1764431559162,3.10770297,137.47,137.45,1.67791577]
[1764431559557,0.04770297,137.47,137.45,1.67791577]
[1764431560067,3.10770297,137.47,137.45,0.04791577]
[1764431565379,0.04770297,137.47,137.45,1.67791577]
[1764431565568,3.10770297,137.47,137.45,1.67791577]
[1764431567876,0.04770297,137.47,137.45,1.67791577]
[1764431568773,0.04770297,137.47,137.45,5.01169607]
[1764431569370,0.04770297,137.47,137.46,1.63]
[1764431569979,3.11770297,137.47,137.45,5.01169607]
[1764431570175,3.11770297,137.47,137.45,0.04791577]
[1764431574679,0.04770297,137.47,137.46,1.63]
[1764431577879,3.11770297,137.47,137.45,0.04791577]
[1764431580579,0.04770297,137.47,137.45,1.67791577]
[1764431580783,0.04770297,137.47,137.46,4.9637803]
[1764431582185,3.11770297,137.47,137.45,0.04791577]
[1764431589294,3.07,137.46,137.4,9.8820803]
[1764431589681,3.07,137.46,137.4,11.5620803]
[1764431590081,3.07,137.46,137.42,0.05041885]
[1764431591692,3.07,137.46,137.43,1.68]
[1764431595789,0.04770297,137.47,137.44,3.3337803]
[1764431595994,0.04770297,137.47,137.42,0.05041885]
[1764431595995,3.11770297,137.47,137.46,3.3337803]
[1764431596395,3.11770297,137.47,137.45,0.04744036]
[1764431596591,3.11770297,137.47,137.45,2.1805912]
[1764431599500,3.11770297,137.47,137.45,0.04744036]
[1764431605405,3.11770297,137.47,137.45,2.1805912]
[1764431609810,3.11770297,137.47,137.45,0.04744036]
[1764431610008,3.11770297,137.47,137.46,2.13315084]
[1764431619419,3.11770297,137.47,137.46,3.81315084]
[1764431619621,0.04770297,137.47,137.46,3.81315084]
[1764431626924,3.05770297,137.47,137.46,2.13315084]
[1764431630018,0.04770297,137.47,137.46,3.81315084]
[1764431632116,11.86776134,137.52,137.48,1.68]
[1764431632316,3.19,137.51,137.49,1.68]
[1764431633115,3.2427286,137.51,137.49,1.72971958]
[1764431633415,3.2427286,137.51,137.49,0.04971958]
[1764431639731,3.2427286,137.51,137.49,1.72971958]
[1764431640031,3.2427286,137.51,137.49,0.04971958]
[1764431648445,3.2427286,137.51,137.49,1.72971958]
[1764431654954,3.2427286,137.51,137.49,0.04971958]
[1764431655845,3.2427286,137.51,137.49,1.72971958]
[1764431656052,16.52,137.57,137.49,3.64287042]
[1764431656053,6.80118514,137.57,137.49,3.64287042]
[1764431656260,13.69078237,137.6,137.56,2.13315084]
[1764431656261,3.19,137.6,137.56,2.13315084]
[1764431656557,3.19,137.6,137.55,3.32707312]
[1764431656746,3.19,137.6,137.53,6.5419]
[1764431656943,3.2431657,137.58,137.55,0.04829232]
[1764431659646,3.2431657,137.58,137.45,13.42724875]
[1764431659647,3.3,137.57,137.48,3.32707312]
[1764431659853,3.3,137.55,137.48,3.32707312]
[1764431660258,3.3,137.55,137.46,3.32707312]
[1764431660663,3.3490711,137.52,137.49,0.05538305]
[1764431669873,3.3490711,137.52,137.45,6.546]
[1764431669874,3.3,137.5,137.45,6.546]
[1764431670263,3.3,137.5,137.43,6.547]
[1764431670863,3.3,137.47,137.45,0.05181928]
[1764431674269,3.3,137.46,137.37,30.54878598]
[1764431674465,3.3,137.46,137.37,24.88353798]
[1764431674660,3.3,137.46,137.39,3.32707312]
[1764431674873,3.3,137.46,137.41,3.32707312]
[1764431675173,3.35061809,137.45,137.42,0.04757915]
[1764431675359,3.354924,137.45,137.42,0.05201077]
[1764431682773,0.054924,137.45,137.43,9.87407312]
[1764431684980,3.354924,137.45,137.43,9.87407312]
[1764431685680,3.354924,137.45,137.43,6.547]
[1764431686181,3.354924,137.45,137.42,0.05201077]
[1764431686370,3.354924,137.45,137.42,3.37908389]
[1764431686674,3.354924,137.45,137.42,0.05201077]
[1764431686878,3.354924,137.45,137.42,3.37908389]
[1764431688288,0.054924,137.45,137.42,3.37908389]
[1764431688787,3.354924,137.45,137.42,3.37908389]
[1764431692087,3.354924,137.45,137.42,9.92638389]
[1764431692288,3.354924,137.45,137.44,3.32707312]
[1764431692289,3.184924,137.45,137.44,3.32707312]
[1764431692685,0.054924,137.45,137.44,3.32707312]
[1764431694483,3.184924,137.45,137.44,3.32707312]
[1764431696695,0.054924,137.45,137.44,3.32707312]
[1764431698289,3.13,137.48,137.44,9.87327312]
[1764431699094,3.13,137.48,137.46,3.32707312]
[1764431699288,3.18187931,137.48,137.46,3.37828305]
[1764431701699,0.05187931,137.48,137.46,3.37828305]
[1764431702788,0.05187931,137.48,137.46,9.92368305]
[1764431703690,3.13,137.52,137.47,6.545]
[1764431703884,3.13,137.52,137.49,3.32707312]
[1764431704789,3.1791561,137.52,137.49,0.04687355]
[1764431711999,3.1791561,137.52,137.49,3.37394667]
[1764431714203,0.0491561,137.52,137.51,3.32707312]
[1764431716508,0.0491561,137.52,137.51,2.1308736]
[1764431719805,3.0791561,137.52,137.51,2.1308736]
[1764431721207,3.0791561,137.52,137.49,6.59087355]
[1764431721410,3.0791561,137.52,137.49,2.17774715]
[1764431725817,3.0791561,137.52,137.5,2.1308736]
[1764431736027,0.0491561,137.52,137.5,2.1308736]
[1764431737018,0.0491561,137.52,137.5,8.6741736]
[1764431737523,0.0491561,137.52,137.5,15.38828151]
[1764431737726,3.0,137.56,137.52,6.5426]
[1764431738016,3.0,137.56,137.53,2.1308736]
[1764431738822,3.04879656,137.56,137.53,2.18146345]
[1764431742621,3.04879656,137.56,137.53,0.05058985]
[1764431747318,3.04879656,137.56,137.53,2.18146345]
[1764431750832,3.04879656,137.56,137.55,2.1308736]
[1764431753028,0.04879656,137.56,137.55,2.1308736]
[1764431754231,3.22879656,137.56,137.55,2.1308736]
[1764431754536,3.18,137.6,137.55,2.1308736]
[1764431754731,3.18,137.6,137.58,2.1308736]
[1764431755530,3.22779344,137.6,137.58,2.18096241]
[1764431761752,3.22779344,137.6,137.59,2.1308736]
[1764431765555,3.22779344,137.6,137.58,2.18096241]
[1764431768457,3.22779344,137.6,137.58,0.05008881]
[1764431768650,3.22779344,137.6,137.58,2.18096241]
[1764431771859,0.04779344,137.6,137.58,2.18096241]
[1764431773756,3.22779344,137.6,137.58,2.18096241]
[1764431774864,3.22779344,137.6,137.58,0.05008881]
[1764431781067,0.04779344,137.6,137.58,0.05008881]
[1764431781460,3.08779344,137.6,137.58,0.05008881]
[1764431782769,3.08779344,137.6,137.58,6.58998881]
[1764431786369,3.08779344,137.6,137.58,0.05008881]
[1764431786869,3.08779344,137.6,137.54,6.5416]
[1764431787971,3.08779344,137.6,137.56,0.05060798]
[1764431788482,3.14,137.59,137.56,0.05060798]
[1764431793375,9.6797,137.59,137.56,0.05060798]
[1764431793573,3.14,137.58,137.56,0.05060798]
[1764431795175,9.6802,137.58,137.56,0.05060798]
[1764431795380,3.14,137.57,137.56,0.05060798]
[1764431798378,3.14,137.57,137.51,9.87009994]
[1764431798585,3.14,137.56,137.51,9.87009994]
[1764431799479,3.14,137.54,137.52,0.05409286]
[1764431818805,3.14,137.54,137.52,3.3811928]
[1764431821099,3.14,137.54,137.52,0.05409286]
[1764431822898,9.682,137.54,137.52,0.05409286]
[1764431823103,3.05,137.53,137.52,0.05409286]
[1764431835322,3.05,137.54,137.52,3.3811928]
[1764431840527,3.05,137.54,137.53,2.13058723]
[1764431860349,3.05,137.54,137.52,0.05409286]
[1764431860549,3.05,137.54,137.52,2.18468009]
[1764431864546,0.05361141,137.55,137.52,2.18468009]
[1764431864752,0.05361141,137.55,137.54,2.13058723]
[1764431869863,0.05361141,137.55,137.54,8.67238723]
[1764431875069,0.05361141,137.55,137.54,2.13058723]
[1764431880465,0.05361141,137.55,137.53,6.5422]
[1764431880670,0.05361141,137.55,137.53,8.67278723]
[1764431890980,3.20361141,137.55,137.53,8.67278723]
[1764431891586,0.05361141,137.55,137.53,8.67278723]
[1764431894585,3.20361141,137.55,137.52,0.05409286]
[1764431896878,3.15,137.54,137.52,0.05409286]
[1764431901392,9.6921,137.54,137.52,0.05409286]
[1764431901692,3.02,137.53,137.52,0.05409286]
[1764431927412,3.07361141,137.55,137.52,0.05409286]
[1764431932607,0.05361141,137.55,137.53,9.87360879]
[1764431938616,3.05361141,137.55,137.52,0.05409286]
[1764431945422,0.05361141,137.55,137.53,3.33130879]
[1764431945823,0.05361141,137.55,137.53,9.87340879]
[1764431948929,3.05361141,137.55,137.53,9.87340879]
[1764431949131,3.05361141,137.55,137.53,6.5421]
[1764431954742,3.05361141,137.55,137.52,0.05409286]
[1764431958341,3.24,137.54,137.52,0.05409286]
[1764431963141,3.27,137.53,137.52,0.05409286]
[1764431966046,3.27,137.53,137.48,2.1314606]
[1764431967148,3.27,137.51,137.49,0.05290087]
[1764431974057,3.27,137.51,137.5,2.1314606]
[1764431975347,3.31737975,137.52,137.5,2.1314606]
[1764431980557,0.04737975,137.52,137.5,8.6750606]
[1764431981251,3.31737975,137.52,137.5,8.6750606]
[1764431981450,0.04737975,137.52,137.5,8.6750606]
[1764431986365,3.31737975,137.52,137.5,6.5436]
[1764431986659,3.31737975,137.52,137.51,2.1314606]
[1764431990262,0.04737975,137.52,137.51,2.1314606]
[1764431991162,3.23,137.58,137.52,6.5428]
[1764431991365,3.23,137.58,137.55,2.1314606]
[1764431992170,3.27857499,137.58,137.55,2.17871971]
[1764432000369,0.04857499,137.58,137.55,0.04725911]
[1764432003379,0.04857499,137.58,137.56,6.5407]
[1764432004473,6.7890817,137.62,137.6,6.5388]
[1764432004972,10.0190817,137.62,137.6,6.5388]
[1764432005374,10.06894993,137.62,137.6,6.5863071]
[1764432005568,10.06894993,137.62,137.6,0.0475071]
[1764432005773,3.23,137.61,137.6,0.0475071]
[1764432008766,3.23,137.61,137.56,6.5406]
[1764432009875,3.23,137.59,137.57,0.05499173]
[1764432010075,3.28454702,137.59,137.57,0.05546372]
[1764432018778,9.82424702,137.59,137.57,0.05546372]
[1764432018980,3.24,137.58,137.52,6.5426]
[1764432020379,3.24,137.58,137.54,0.05535551]
[1764432024383,3.24,137.58,137.54,6.59695551]
[1764432025088,3.24,137.58,137.56,6.5409]
[1764432025785,0.05454702,137.59,137.56,6.5409]
[1764432025978,3.34454702,137.59,137.56,6.5409]
[1764432026885,0.05454702,137.59,137.57,6.54]
[1764432033692,3.34454702,137.59,137.55,6.5412]
[1764432034191,3.34454702,137.59,137.54,9.01327057]
[1764432035394,3.34454702,137.59,137.56,6.5407]
[1764432040900,0.05454702,137.59,137.57,6.5401]
[1764432042596,3.34454702,137.59,137.57,6.5401]
[1764432048005,3.34454702,137.59,137.55,6.5411]
[1764432050206,3.34454702,137.59,137.54,0.05535551]
[1764432065532,2.99,137.58,137.54,0.05535551]
[1764432069628,2.99,137.58,137.54,6.59695551]
[1764432073637,3.04454702,137.59,137.54,6.59695551]
[1764432074231,3.04454702,137.59,137.54,0.05535551]
[1764432074429,2.99,137.58,137.54,0.05535551]
[1764432077836,2.99,137.57,137.54,0.05535551]
[1764432078640,3.07,137.56,137.49,6.544]
[1764432079537,2.99,137.53,137.51,0.0559545]
[1764432091142,2.99,137.53,137.45,22.23424968]
[1764432091348,2.99,137.53,137.42,8.99422537]
[1764432092047,3.04406461,137.49,137.46,0.04828658]
[1764432092250,3.03912607,137.49,137.46,0.05314561]
[1764432106375,3.03912607,137.49,137.46,6.59864561]
[1764432106670,3.03912607,137.49,137.46,0.05314561]
[1764432108465,2.99,137.48,137.46,0.05314561]
[1764432113080,2.99,137.48,137.46,0.00314561]
[1764432118781,2.99,137.48,137.41,22.16475883]
[1764432118782,3.05,137.47,137.41,22.16475883]
[1764432118983,3.05,137.47,137.37,1.2655696]
[1764432119282,3.05,137.47,137.4,6.5482]
[1764432119676,3.09857369,137.45,137.42,0.04595552]
[1764432123084,0.04857369,137.45,137.42,0.04595552]
[1764432124482,0.04857369,137.45,137.44,6.5466]
[1764432132780,3.05,137.5,137.45,6.5458]
[1764432133786,0.04672113,137.49,137.46,0.05401883]
[1764432133987,3.05,137.48,137.46,0.05401883]
[1764432135989,3.05,137.48,137.46,6.59951883]
[1764432136390,0.04672113,137.49,137.46,0.05401883]
[1764432136887,0.04672113,137.49,137.47,6.5449]
[1764432138983,3.27,137.55,137.51,6.5429]
[1764432139492,3.27,137.55,137.46,8.99422537]
[1764432140083,0.05518812,137.52,137.49,0.05379999]
[1764432140594,0.05518812,137.52,137.51,6.5429]
[1764432142989,3.27,137.57,137.53,6.5423]
[1764432144193,3.27,137.55,137.54,0.05065047]
[1764432152887,3.32330631,137.56,137.54,6.59225047]
[1764432154691,3.32330631,137.56,137.54,0.05065047]
[1764432159886,3.32330631,137.56,137.54,0.00065047]
[1764432162203,3.32330631,137.56,137.5,6.5434]
[1764432162390,3.32330631,137.56,137.4,44.28972754]
[1764432162596,3.27,137.55,137.4,35.29550217]
[1764432163387,3.27,137.48,137.46,0.05351823]
[1764432163590,3.32567606,137.48,137.46,0.05376387]
[1764432175806,0.05567606,137.48,137.46,0.05376387]
[1764432176016,3.20567606,137.48,137.46,3.38651864]
[1764432177512,0.05567606,137.48,137.46,9.93201864]
[1764432178199,3.15,137.52,137.48,6.5445]
[1764432178404,3.15,137.52,137.49,3.33275477]
[1764432179213,3.19650911,137.52,137.49,3.38451509]
[1764432182622,3.19650911,137.52,137.49,0.05176032]
[1764432186524,0.04650911,137.52,137.49,3.38451509]
[1764432186822,0.04650911,137.52,137.51,3.33275477]
[1764432187927,3.19650911,137.52,137.51,3.33275477]
[1764432189228,3.19650911,137.52,137.5,6.5434]
[1764432192122,3.19650911,137.52,137.49,3.38451509]
[1764432192328,3.19650911,137.52,137.49,0.05176032]
[1764432196530,3.19650911,137.52,137.45,9.87865477]
[1764432196725,3.19650911,137.52,137.43,3.33275477]
[1764432196929,3.15,137.52,137.43,3.33275477]
[1764432197228,3.15,137.51,137.43,9.87955477]
[1764432197624,3.15,137.47,137.46,0.04836259]
[1764432205036,3.0883833,137.48,137.46,0.04836259]
[1764432206530,3.0883833,137.48,137.46,2.18098519]
[1764432210128,3.0883833,137.48,137.46,0.04836259]
[1764432213239,3.0883833,137.48,137.44,2.1326226]
[1764432213841,3.04,137.47,137.41,2.1326226]
[1764432214238,3.04,137.44,137.43,0.05603222]
[1764432220246,0.05547919,137.45,137.43,2.18865482]
[1764432220647,3.09547919,137.45,137.43,2.18865482]
[1764432221046,3.09547919,137.45,137.4,2.1326226]
[1764432221869,3.09547919,137.45,137.39,8.6815226]
[1764432222060,3.09547919,137.45,137.41,0.055725]
[1764432222762,3.04,137.43,137.41,0.055725]
[1764432233060,3.29,137.44,137.41,0.055725]
[1764432233861,3.29,137.44,137.42,2.1326226]
[1764432234365,0.05547919,137.45,137.42,2.1326226]
[1764432234566,0.05547919,137.45,137.44,2.1326226]
[1764432241572,3.34547919,137.45,137.42,8.6799226]
[1764432243077,3.34547919,137.45,137.42,2.1326226]
[1764432243872,0.05547919,137.45,137.42,2.1326226]
[1764432244074,3.34547919,137.45,137.44,2.1326226]
[1764432247188,3.34547919,137.45,137.41,0.055725]
[1764432247189,3.34547919,137.45,137.42,2.1326226]
[1764432255394,3.34547919,137.45,137.42,8.6798226]
[1764432256194,0.05547919,137.45,137.42,8.6798226]
[1764432256903,3.34547919,137.45,137.42,8.6798226]
[1764432268512,3.34547919,137.45,137.42,6.5472]
[1764432268804,3.34547919,137.45,137.41,0.055725]
[1764432269508,3.34547919,137.45,137.41,6.603425]
[1764432269709,3.34547919,137.45,137.42,3.33398413]
[1764432277426,3.34547919,137.45,137.41,6.603425]
[1764432277624,3.34547919,137.45,137.41,0.055725]
[1764432277817,10.13356308,137.45,137.41,0.055725]
[1764432278133,3.09,137.44,137.41,0.055725]
[1764432278416,8.42531886,137.43,137.41,0.055725]
[1764432278621,6.78808389,137.44,137.41,0.055725]
[1764432278622,8.42531886,137.42,137.41,0.055725]
[1764432278811,13.59054234,137.42,137.41,0.055725]
[1764432279217,3.09,137.41,137.37,6.5496]
[1764432279824,3.09,137.39,137.35,6.5508]
[1764432280124,0.05382481,137.38,137.36,3.36062822]
[1764432280327,0.04756906,137.38,137.36,3.36062822]
[1764432281322,0.04756906,137.38,137.37,6.5499]
[1764432282626,8.23475347,137.42,137.37,6.5499]
[1764432282817,3.09,137.42,137.39,3.33398413]
[1764432283520,3.13654565,137.42,137.39,3.38095369]
[1764432284519,3.13654565,137.42,137.39,0.04696956]
[1764432292235,5.1406055,137.41,137.39,0.04696956]
[1764432292436,3.31,137.4,137.39,0.04696956]
[1764432297235,0.04654565,137.42,137.39,0.04696956]
[1764432297435,0.04654565,137.42,137.4,3.33398413]
[1764432300135,0.04654565,137.42,137.4,9.88218413]
[1764432304843,10.09808389,137.48,137.42,6.5473]
[1764432305046,13.85048213,137.47,137.43,3.33398413]
[1764432305238,5.13821996,137.46,137.43,3.33398413]
[1764432305541,3.31,137.46,137.43,3.33398413]
[1764432306142,3.35603753,137.46,137.43,3.38396881]
[1764432309550,3.35603753,137.46,137.43,9.93066881]
[1764432310137,0.04603753,137.46,137.44,6.5464]
[1764432314942,3.35603753,137.46,137.44,6.5464]
[1764432315141,3.35603753,137.46,137.43,0.04998468]
[1764432320656,0.04603753,137.46,137.43,3.38396881]
[1764432321455,0.04603753,137.46,137.43,9.93076881]
[1764432324858,3.03603753,137.46,137.43,9.93076881]
[1764432326352,3.03603753,137.46,137.43,6.59678468]
[1764432330557,3.03603753,137.46,137.43,8.73017553]
[1764432339764,3.03603753,137.46,137.45,2.13339085]
[1764432339973,0.04603753,137.46,137.45,2.13339085]
[1764432341265,3.03603753,137.46,137.43,0.04998468]
[1764432344867,2.99,137.44,137.43,0.04998468]
[1764432346569,8.39591425,137.44,137.43,0.04998468]
[1764432353374,8.39591425,137.44,137.43,2.18337553]
[1764432355473,8.39591425,137.44,137.43,0.04998468]
[1764432355671,8.39591425,137.44,137.43,2.18337553]
[1764432357376,3.06603753,137.46,137.43,2.18337553]
[1764432357566,3.06603753,137.46,137.45,2.13339085]
[1764432357968,3.06603753,137.46,137.43,0.04998468]
[1764432358267,3.06603753,137.46,137.45,2.13339085]
[1764432368182,0.04603753,137.46,137.45,2.13339085]
[1764432370582,3.02,137.5,137.45,8.67929085]
[1764432370776,8.41521255,137.49,137.47,2.13339085]
[1764432370976,3.02,137.49,137.47,2.13339085]
[1764432371175,3.02,137.52,137.47,2.13339085]
[1764432371375,5.3936718,137.51,137.5,2.13339085]
[1764432371777,8.4136718,137.51,137.49,0.05541912]
[1764432371987,0.04713794,137.52,137.46,2.13339085]
[1764432371988,3.02,137.49,137.46,2.13339085]
[1764432372379,3.02,137.49,137.44,2.13339085]
[1764432372584,3.02,137.47,137.44,2.13339085]
[1764432372992,3.06926795,137.47,137.44,2.18373473]
[1764432373188,3.06926795,137.47,137.44,0.05034388]
[1764432375293,3.02,137.45,137.44,0.05034388]
[1764432380004,8.41661799,137.45,137.44,0.05034388]
[1764432382212,3.02,137.45,137.44,0.05034388]
[1764432387520,3.18926795,137.47,137.44,2.18373473]
[1764432387813,8.52727131,137.46,137.44,2.18373473]
[1764432388010,3.14,137.46,137.44,2.18373473]
[1764432388317,3.14,137.46,137.44,0.05034388]
[1764432394420,3.14,137.46,137.39,12.3767059]
[1764432394421,3.14,137.46,137.41,6.5484]
[1764432394609,3.14,137.44,137.41,6.5484]
[1764432394809,3.14,137.44,137.38,9.04294613]
[1764432395105,3.14,137.44,137.37,3.33375977]
[1764432395510,0.05146048,137.42,137.39,0.0558053]
[1764432395816,3.19146048,137.42,137.39,0.0558053]
[1764432396317,3.19146048,137.42,137.39,6.6051053]
[1764432396517,3.19146048,137.42,137.39,0.0558053]
[1764432397421,3.19146048,137.42,137.4,6.549]
[1764432404414,3.19146048,137.42,137.39,0.0558053]
[1764432417632,3.26,137.4,137.39,0.0558053]
[1764432423737,3.31146048,137.42,137.39,3.38956507]
[1764432430651,3.31146048,137.42,137.39,9.93906507]
[1764432437060,3.31146048,137.42,137.39,6.6053053]
[1764432437247,3.26,137.4,137.39,6.6053053]
[1764432440757,0.05146048,137.42,137.39,6.6053053]
[1764432440961,8.19807298,137.41,137.39,6.6053053]
[1764432441261,2.99,137.41,137.39,6.6053053]
[1764432448570,0.05146048,137.42,137.4,3.33375977]
[1764432449565,0.05146048,137.42,137.4,9.88275977]
[1764432450776,2.99,137.44,137.43,6.5477]
[1764432450974,2.99,137.44,137.43,9.88145977]
[1764432450975,8.19124318,137.44,137.43,9.88145977]